bitfinex/quotes_SOLUSD_20251128
["timestamp","ask_amount","ask_price","bid_price","bid_amount"]
[1764351018754,7.97219838,137.51,137.46,0.69]
[1764351018939,7.27219838,137.51,137.47,5.88715609]
[1764351019362,16.308864,137.52,137.48,0.69]
[1764351019573,0.2,137.53,137.49,5.88715609]
[1764351019746,0.2,137.53,137.51,5.88715609]
[1764351020071,0.2,137.54,137.52,14.98142415]
[1764351020262,0.2,137.56,137.55,8.80994492]
[1764351020574,0.2,137.56,137.55,14.69710101]
[1764351020868,0.2,137.58,137.57,31.00596501]
[1764351021066,0.2,137.58,137.57,8.80994492]
[1764351021255,0.2,137.58,137.55,3.54432314]
[1764351021581,0.2,137.58,137.57,22.25045082]
[1764351022051,0.2,137.62,137.61,8.80994492]
[1764351022381,0.2,137.62,137.61,14.69710101]
[1764351023165,0.2,137.62,137.57,0.45]
[1764351023346,0.2,137.62,137.6,5.88715609]
[1764351023749,0.2,137.62,137.61,5.88715609]
[1764351025271,0.2,137.62,137.6,19.33698486]
[1764351025272,0.2,137.62,137.6,5.88715609]
[1764351025451,0.2,137.62,137.59,5.88715609]
[1764351025651,8.16640355,137.62,137.59,5.88715609]
[1764351026757,8.16640355,137.62,137.57,21.96603275]
[1764351026758,0.7,137.61,137.57,21.96603275]
[1764351027415,5.88715609,137.59,137.51,18.17944567]
[1764351027550,16.308864,137.59,137.55,5.88715609]
[1764351027972,5.88715609,137.57,137.52,5.88715609]
[1764351028191,5.88715609,137.55,137.5,5.88715609]
[1764351028388,5.88715609,137.54,137.46,7.27484359]
[1764351028556,5.88715609,137.54,137.49,5.88715609]
[1764351028557,6.58715609,137.54,137.49,5.88715609]
[1764351028756,7.97114084,137.53,137.5,5.88715609]
[1764351029680,0.7,137.56,137.52,5.88715609]
[1764351030290,13.15734407,137.55,137.5,5.88715609]
[1764351030455,7.27018798,137.55,137.5,5.88715609]
[1764351030785,7.97098562,137.54,137.5,5.88715609]
[1764351031662,0.7,137.54,137.5,5.88715609]
[1764351031959,0.7,137.53,137.49,5.88715609]
[1764351032359,0.7,137.53,137.51,5.88715609]
[1764351032564,0.2,137.62,137.53,8.80994492]
[1764351032752,0.7,137.59,137.55,5.88715609]
[1764351032952,3.96,137.61,137.56,5.88715609]
[1764351033158,0.2,137.62,137.6,5.88715609]
[1764351033358,0.2,137.62,137.58,5.88715609]
[1764351033578,0.2,137.62,137.57,16.308864]
[1764351033579,6.78715609,137.62,137.57,16.308864]
[1764351033772,6.78715609,137.62,137.57,5.88715609]
[1764351033773,14.05357478,137.62,137.57,5.88715609]
[1764351033974,0.7,137.61,137.57,5.88715609]
[1764351034173,0.7,137.61,137.55,25.11880892]
[1764351034571,0.7,137.61,137.56,5.88715609]
[1764351035061,0.7,137.61,137.56,13.15669495]
[1764351035379,0.2,137.62,137.6,5.88715609]
[1764351035590,0.2,137.62,137.61,5.88715609]
[1764351035959,0.2,137.62,137.61,15.43142415]
[1764351036762,0.2,137.62,137.61,39.00720189]
[1764351036958,1e-08,137.62,137.61,39.00720189]
[1764351037165,0.2,137.64,137.63,25.11880892]
[1764351037363,0.2,137.64,137.63,34.57028815]
[1764351037781,0.2,137.64,137.63,34.28596501]
[1764351038380,0.2,137.64,137.59,7.26797005]
[1764351038381,0.85,137.64,137.59,7.26797005]
[1764351038590,0.2,137.64,137.62,5.88715609]
[1764351038759,0.2,137.64,137.6,8.80994492]
[1764351038961,0.65,137.63,137.59,14.69710101]
[1764351039186,0.2,137.64,137.61,5.88715609]
[1764351039369,8.11536057,137.64,137.61,5.88715609]
[1764351039573,8.11536057,137.64,137.6,5.88715609]
[1764351039891,0.85,137.64,137.61,5.88715609]
[1764351040065,0.85,137.64,137.59,8.80994492]
[1764351040066,0.2,137.64,137.62,5.88715609]
[1764351040388,0.85,137.64,137.6,3.28]
[1764351040586,0.2,137.64,137.62,5.88715609]
[1764351040795,0.2,137.64,137.63,5.88715609]
[1764351041900,0.2,137.64,137.63,8.80994492]
[1764351042066,0.2,137.64,137.63,14.69710101]
[1764351043095,0.2,137.64,137.63,21.96295874]
[1764351043992,0.2,137.64,137.63,25.22295874]
[1764351045297,0.2,137.64,137.62,7.26627897]
[1764351045506,0.2,137.64,137.63,5.88715609]
[1764351045992,0.2,137.64,137.62,16.41343506]
[1764351046164,0.2,137.64,137.6,13.15422432]
[1764351046165,0.85,137.64,137.6,13.15422432]
[1764351046367,0.85,137.64,137.62,5.88715609]
[1764351046666,0.2,137.64,137.63,5.88715609]
[1764351046864,0.2,137.64,137.62,5.88715609]
[1764351047269,0.2,137.64,137.63,5.88715609]
[1764351047578,0.2,137.64,137.62,5.88715609]
[1764351048669,0.2,137.64,137.62,10.20757131]
[1764351048867,0.2,137.64,137.63,10.20757131]
[1764351049918,0.2,137.64,137.62,10.20757131]
[1764351050371,0.2,137.64,137.63,10.20757131]
[1764351050804,0.2,137.64,137.63,19.75183937]
[1764351051505,0.2,137.64,137.63,10.20757131]
[1764351051879,0.2,137.64,137.63,17.47342904]
[1764351052813,0.2,137.64,137.63,26.28337396]
[1764351053010,0.2,137.64,137.62,10.52630941]
[1764351053307,0.2,137.64,137.63,10.20757131]
[1764351053998,0.2,137.64,137.63,17.47342904]
[1764351054305,0.2,137.64,137.6,7.26701608]
[1764351054306,8.11553359,137.64,137.6,7.26701608]
[1764351054502,8.11553359,137.64,137.61,10.20757131]
[1764351054872,0.85,137.64,137.62,10.20757131]
[1764351055203,0.65,137.63,137.62,10.20757131]
[1764351055606,0.65,137.63,137.61,10.20757131]
[1764351055977,0.65,137.63,137.59,19.33770535]
[1764351056178,0.65,137.63,137.59,19.33784701]
[1764351056398,0.65,137.63,137.61,10.20757131]
[1764351057697,7.46563026,137.64,137.61,10.20757131]
[1764351057903,7.26638569,137.62,137.58,16.308864]
[1764351058104,7.26638569,137.62,137.59,10.20757131]
[1764351058276,0.65,137.61,137.58,29.77643531]
[1764351058478,0.65,137.61,137.57,8.80994492]
[1764351058680,10.85757131,137.61,137.56,13.46757131]
[1764351058878,0.65,137.61,137.56,13.46757131]
[1764351059077,0.65,137.6,137.56,13.46757131]
[1764351060108,0.65,137.63,137.59,10.20757131]
[1764351060303,0.65,137.62,137.59,10.20757131]
[1764351060719,10.20757131,137.61,137.56,7.26943993]
[1764351060888,13.46757131,137.61,137.56,7.26943993]
[1764351061085,0.65,137.6,137.56,7.26943993]
[1764351061296,26.08086026,137.63,137.59,10.20757131]
[1764351061520,26.08086026,137.63,137.57,9.25994492]
[1764351061521,0.65,137.63,137.61,10.20757131]
[1764351061823,0.65,137.62,137.58,10.20757131]
[1764351062026,7.91652825,137.62,137.59,10.20757131]
[1764351062327,0.2,137.64,137.61,10.20757131]
[1764351062528,0.2,137.64,137.63,10.20757131]
[1764351063523,0.85,137.64,137.62,7.26638569]
[1764351064406,0.85,137.64,137.62,17.473957]
[1764351064723,0.85,137.64,137.61,17.47427257]
[1764351065024,0.69,137.63,137.61,17.47427257]
[1764351065626,0.2,137.64,137.61,17.47427257]
[1764351065830,0.69,137.63,137.6,20.73477196]
[1764351066827,7.95602666,137.63,137.6,7.26720065]
[1764351067312,0.69,137.62,137.6,7.26720065]
[1764351068528,0.69,137.62,137.6,10.20757131]
[1764351070325,0.69,137.62,137.6,17.47465762]
[1764351070507,0.69,137.62,137.57,8.80994492]
[1764351070832,0.69,137.62,137.59,10.20757131]
[1764351071525,7.26691374,137.61,137.58,10.20757131]
[1764351072031,0.69,137.61,137.55,28.82880892]
[1764351072203,0.69,137.61,137.6,10.20757131]
[1764351072404,0.69,137.61,137.53,7.41330241]
[1764351072405,10.89757131,137.61,137.53,7.41330241]
[1764351072638,10.20757131,137.59,137.55,10.20757131]
[1764351072802,10.20757131,137.59,137.53,8.80994492]
[1764351073008,10.20757131,137.59,137.52,10.53148474]
[1764351073009,0.69,137.58,137.57,10.20757131]
[1764351073207,0.69,137.61,137.57,10.20757131]
[1764351073429,7.95717486,137.61,137.58,10.20757131]
[1764351073827,0.69,137.6,137.59,10.20757131]
[1764351075115,0.69,137.6,137.58,10.20757131]
[1764351075535,7.26797005,137.59,137.57,10.20757131]
[1764351075907,7.92797005,137.59,137.57,10.20757131]
[1764351076115,0.66,137.59,137.57,10.20757131]
[1764351077041,14.12757131,137.59,137.5,16.308864]
[1764351077219,14.12757131,137.59,137.51,12.06994492]
[1764351077220,10.20757131,137.58,137.51,12.06994492]
[1764351077426,10.20757131,137.57,137.53,10.20757131]
[1764351077623,7.2695551,137.56,137.53,10.20757131]
[1764351077838,7.9295551,137.56,137.53,10.20757131]
[1764351078024,0.66,137.55,137.53,10.20757131]
[1764351078335,0.66,137.55,137.54,10.20757131]
[1764351078718,0.66,137.55,137.53,10.20757131]
[1764351078917,0.66,137.55,137.51,10.20757131]
[1764351079638,18.13803713,137.55,137.5,10.20757131]
[1764351079823,18.13803713,137.55,137.51,10.20757131]
[1764351080027,0.66,137.54,137.51,10.20757131]
[1764351080441,10.86757131,137.54,137.5,10.20757131]
[1764351080626,18.13849518,137.54,137.5,10.20757131]
[1764351080829,0.66,137.53,137.5,10.20757131]
[1764351081442,0.66,137.53,137.52,10.20757131]
[1764351081744,0.66,137.53,137.51,10.20757131]
[1764351082059,0.66,137.53,137.5,10.20757131]
[1764351082252,10.20757131,137.52,137.48,17.48118281]
[1764351082438,10.20757131,137.51,137.47,10.20757131]
[1764351082631,10.20757131,137.5,137.42,18.29200972]
[1764351082855,10.20757131,137.49,137.44,10.20757131]
[1764351083022,10.20757131,137.48,137.44,10.20757131]
[1764351083218,10.20757131,137.46,137.42,0.1]
[1764351083443,10.20757131,137.44,137.42,0.1]
[1764351083641,13.46757131,137.43,137.39,0.1]
[1764351083853,10.20757131,137.41,137.39,0.1]
[1764351084127,13.46757131,137.4,137.39,0.1]
[1764351084345,13.46757131,137.4,137.37,0.1]
[1764351084557,10.86757131,137.39,137.37,0.1]
[1764351084738,7.9386472,137.39,137.37,0.1]
[1764351084929,10.86757131,137.38,137.31,7.2827314]
[1764351085135,13.46757131,137.37,137.32,10.20757131]
[1764351085443,14.12757131,137.37,137.33,10.20757131]
[1764351085640,0.66,137.36,137.31,7.2827314]
[1764351085840,0.66,137.36,137.32,10.20757131]
[1764351086148,18.1477295,137.36,137.29,25.49230602]
[1764351086329,16.308864,137.35,137.33,10.20757131]
[1764351086647,16.308864,137.35,137.29,7.9838517]
[1764351086648,16.968864,137.35,137.32,10.20757131]
[1764351086828,0.66,137.34,137.31,10.20757131]
[1764351087037,14.12757131,137.34,137.3,10.20757131]
[1764351087237,26.51643531,137.33,137.29,10.20757131]
[1764351087424,3.92,137.34,137.32,10.20757131]
[1764351087750,3.26,137.36,137.33,10.20757131]
[1764351087917,3.26,137.36,137.28,25.81880892]
[1764351087918,3.26,137.36,137.34,10.20757131]
[1764351088123,3.92,137.36,137.34,10.20757131]
[1764351088345,0.66,137.35,137.34,10.20757131]
[1764351088647,7.938631,137.39,137.34,10.20757131]
[1764351088855,7.938631,137.39,137.32,0.7]
[1764351088856,0.66,137.38,137.37,10.20757131]
[1764351089063,0.66,137.38,137.36,10.20757131]
[1764351089428,0.66,137.38,137.37,10.20757131]
[1764351090530,0.66,137.38,137.34,10.20757131]
[1764351090731,0.66,137.38,137.26,1.99999999]
[1764351090732,10.20757131,137.37,137.32,10.20757131]
[1764351090949,0.66,137.38,137.33,0.7]
[1764351091129,3.26,137.39,137.37,10.20757131]
[1764351091326,0.66,137.42,137.38,10.20757131]
[1764351091529,3.26,137.43,137.41,10.20757131]
[1764351092529,0.66,137.42,137.41,10.20757131]
[1764351092825,0.66,137.42,137.36,9.79426806]
[1764351093046,0.66,137.42,137.41,10.20757131]
[1764351093631,0.66,137.42,137.35,23.58937734]
[1764351093826,0.66,137.42,137.41,10.20757131]
[1764351094436,0.66,137.42,137.37,7.27960734]
[1764351094640,0.66,137.42,137.4,10.20757131]
[1764351094856,0.66,137.47,137.41,10.20757131]
[1764351095178,16.968864,137.47,137.46,10.20757131]
[1764351095651,16.968864,137.47,137.45,10.20757131]
[1764351095830,0.72,137.46,137.45,10.20757131]
[1764351096029,18.18272404,137.5,137.45,17.48270268]
[1764351096030,0.72,137.5,137.45,17.48270268]
[1764351096258,104.1,137.52,137.49,10.20757131]
[1764351096259,3.28,137.51,137.49,10.20757131]
[1764351096468,19.588864,137.51,137.5,10.20757131]
[1764351096669,0.72,137.54,137.5,10.20757131]
[1764351096832,4.0,137.53,137.52,10.20757131]
[1764351097036,4.0,137.53,137.51,10.20757131]
[1764351097336,0.72,137.52,137.51,10.20757131]
[1764351097536,0.72,137.52,137.47,8.80994492]
[1764351097739,0.72,137.52,137.51,10.20757131]
[1764351098152,0.72,137.52,137.46,7.27475557]
[1764351098461,7.99169428,137.52,137.5,10.20757131]
[1764351098661,4.0,137.53,137.51,10.20757131]
[1764351098877,38.33696129,137.61,137.52,10.20757131]
[1764351098878,0.72,137.56,137.52,10.20757131]
[1764351099085,0.72,137.58,137.55,10.20757131]
[1764351099244,16.308864,137.57,137.55,10.20757131]
[1764351099441,16.308864,137.57,137.56,10.20757131]
[1764351099684,0.72,137.58,137.56,10.20757131]
[1764351099860,0.72,137.57,137.51,9.52994492]
[1764351100057,3.28,137.56,137.54,10.20757131]
[1764351100255,3.28,137.56,137.55,10.20757131]
[1764351100679,4.0,137.56,137.55,10.20757131]
[1764351100881,4.0,137.56,137.54,10.20757131]
[1764351101081,4.0,137.56,137.55,10.20757131]
[1764351102159,4.0,137.56,137.51,16.08168122]
[1764351102462,27.5769729,137.59,137.55,10.20757131]
[1764351102664,20.308864,137.59,137.58,10.20757131]
[1764351102871,4.0,137.59,137.58,10.20757131]
[1764351103067,3.28,137.59,137.58,10.20757131]
[1764351103273,7.26657411,137.62,137.58,10.20757131]
[1764351103457,0.2,137.64,137.61,10.20757131]
[1764351103650,0.2,137.64,137.63,10.20757131]
[1764351104054,0.92,137.64,137.57,16.308864]
[1764351104253,11.46532984,137.64,137.62,10.20757131]
[1764351104481,0.72,137.63,137.61,10.20757131]
[1764351105754,0.72,137.63,137.62,10.20757131]
[1764351106188,0.72,137.63,137.61,10.20757131]
[1764351106478,7.98609089,137.63,137.61,10.20757131]
[1764351106680,7.98609089,137.63,137.62,10.20757131]
[1764351106974,7.26609089,137.63,137.62,10.20757131]
[1764351107278,7.26609089,137.63,137.61,10.20757131]
[1764351107681,0.72,137.62,137.61,10.20757131]
[1764351108465,10.74550365,137.64,137.61,10.20757131]
[1764351108675,0.2,137.64,137.63,10.20757131]
[1764351109080,0.2,137.64,137.61,7.26691114]
[1764351109386,0.2,137.64,137.63,10.20757131]
[1764351109584,0.92,137.64,137.61,7.26691114]
[1764351109882,0.92,137.64,137.63,10.20757131]
[1764351110758,0.2,137.64,137.61,7.26683013]
[1764351110954,0.2,137.64,137.63,5.86147255]
[1764351111178,0.92,137.64,137.58,9.52994492]
[1764351111455,0.92,137.64,137.63,5.86147255]
[1764351111958,0.2,137.64,137.63,5.86147255]
[1764351112175,0.92,137.64,137.63,5.86147255]
[1764351112564,0.92,137.64,137.61,5.86147255]
[1764351112770,0.72,137.63,137.62,5.86147255]
[1764351113854,0.72,137.63,137.61,5.86147255]
[1764351114058,0.72,137.63,137.62,5.86147255]
[1764351115974,0.2,137.64,137.62,5.86147255]
[1764351116174,0.92,137.64,137.63,5.86147255]
[1764351116378,0.2,137.64,137.63,5.86147255]
[1764351118080,0.2,137.64,137.63,13.12733028]
[1764351118403,0.2,137.64,137.63,13.84733028]
[1764351119172,0.2,137.64,137.63,5.86147255]
[1764351119689,0.92,137.64,137.63,5.86147255]
[1764351121315,0.92,137.64,137.61,7.26656234]
[1764351121468,104.82,137.63,137.61,13.12803489]
[1764351121812,104.82,137.63,137.62,5.86147255]
[1764351122094,104.1,137.63,137.62,13.12785824]
[1764351122296,104.1,137.63,137.62,5.86147255]
[1764351122600,104.82,137.63,137.62,5.86147255]
[1764351123095,104.1,137.63,137.62,5.86147255]
[1764351123277,0.2,137.64,137.62,5.86147255]
[1764351123476,0.2,137.64,137.6,0.72]
[1764351123712,0.2,137.64,137.63,5.86147255]
[1764351125377,0.91,137.64,137.63,5.86147255]
[1764351125911,0.91,137.64,137.62,13.12737532]
[1764351126496,0.91,137.64,137.61,5.86147255]
[1764351126497,0.71,137.63,137.61,5.86147255]
[1764351126715,0.71,137.63,137.6,5.86147255]
[1764351127082,0.71,137.63,137.61,5.86147255]
[1764351127302,0.71,137.63,137.6,5.86147255]
[1764351127775,7.97618908,137.63,137.6,5.86147255]
[1764351127977,0.71,137.62,137.61,5.86147255]
[1764351128689,104.1,137.61,137.58,7.26829287]
[1764351129097,104.81,137.61,137.6,5.86147255]
[1764351130317,104.81,137.61,137.56,7.96951977]
[1764351130506,104.81,137.61,137.6,5.86147255]
[1764351130818,104.1,137.61,137.6,5.86147255]
[1764351131390,0.71,137.63,137.6,5.86147255]
[1764351131791,0.71,137.63,137.61,5.86147255]
[1764351132616,7.9758813,137.63,137.6,5.86147255]
[1764351132913,7.9758813,137.63,137.59,5.86147255]
[1764351133091,0.71,137.63,137.61,5.86147255]
[1764351133589,0.2,137.64,137.62,6.56147255]
[1764351133791,0.2,137.64,137.63,5.86147255]
[1764351134110,0.2,137.64,137.63,13.82733028]
[1764351134610,0.2,137.64,137.63,5.86147255]
[1764351135190,7.46532984,137.64,137.63,5.86147255]
[1764351135396,0.2,137.64,137.62,5.86147255]
[1764351135607,0.9,137.64,137.63,5.86147255]
[1764351138019,0.2,137.64,137.63,5.86147255]
[1764351138226,0.2,137.64,137.63,13.82733028]
[1764351138716,0.2,137.64,137.63,13.12733028]
[1764351138927,0.2,137.64,137.63,5.86147255]
[1764351139704,0.2,137.64,137.6,11.22711939]
[1764351139908,0.2,137.64,137.63,5.86147255]
[1764351140120,0.9,137.64,137.62,13.12781765]
[1764351140829,0.7,137.63,137.59,7.26744923]
[1764351140995,0.7,137.63,137.59,13.12892178]
[1764351142526,0.7,137.63,137.58,25.43974414]
[1764351142833,0.7,137.63,137.59,5.86147255]
[1764351142994,13.82762354,137.63,137.58,25.43974414]
[1764351143195,5.86147255,137.62,137.58,7.26849832]
[1764351143399,5.86147255,137.61,137.58,7.26849832]
[1764351143703,0.7,137.61,137.58,7.26849832]
[1764351143917,0.7,137.6,137.58,7.26849832]
[1764351144620,0.7,137.6,137.58,5.86147255]
[1764351144918,0.7,137.6,137.57,5.86147255]
[1764351145228,0.7,137.6,137.56,25.4431995]
[1764351145410,0.7,137.6,137.57,5.86147255]
[1764351146114,7.26665207,137.62,137.58,5.86147255]
[1764351146301,0.7,137.61,137.58,5.86147255]
[1764351146808,7.26665207,137.62,137.6,5.86147255]
[1764351147014,7.26665207,137.62,137.59,5.86147255]
[1764351147210,0.7,137.61,137.58,13.12951501]
[1764351147714,6.56147255,137.61,137.58,7.26804246]
[1764351147900,5.86147255,137.6,137.56,25.4431995]
[1764351148226,104.1,137.59,137.56,25.4431995]
[1764351148400,104.8,137.59,137.56,31.30467205]
[1764351148724,104.8,137.59,137.56,25.4431995]
[1764351150831,3.26,137.61,137.57,6.56147255]
[1764351151207,3.26,137.61,137.58,7.26849832]
[1764351151511,3.96,137.61,137.58,7.26849832]
[1764351152123,0.7,137.61,137.58,7.26849832]
[1764351153119,5.86147255,137.6,137.55,16.308864]
[1764351153319,5.86147255,137.6,137.55,19.568864]
[1764351153520,0.7,137.59,137.55,19.568864]
[1764351154098,0.7,137.59,137.55,26.83878084]
[1764351154421,0.7,137.59,137.55,45.71398985]
[1764351154825,5.86147255,137.6,137.55,51.5754624]
[1764351155052,5.86147255,137.58,137.53,5.86147255]
[1764351155200,0.66,137.59,137.54,5.86147255]
[1764351155399,16.308864,137.62,137.58,5.86147255]
[1764351155602,0.66,137.63,137.58,5.86147255]
[1764351155901,0.66,137.63,137.58,6.53147255]
[1764351156235,0.66,137.63,137.59,7.26797005]
[1764351156405,7.92594489,137.63,137.59,7.26797005]
[1764351156596,0.66,137.62,137.59,7.26797005]
[1764351157228,6.52147255,137.62,137.58,7.26825306]
[1764351157599,0.66,137.61,137.58,7.26825306]
[1764351158123,0.66,137.61,137.57,25.44038608]
[1764351158522,5.86147255,137.6,137.55,9.12147255]
[1764351159026,0.66,137.59,137.55,9.12147255]
[1764351159332,0.66,137.59,137.55,16.39130882]
[1764351159704,0.66,137.59,137.55,17.06130882]
[1764351160310,0.66,137.59,137.56,5.86147255]
[1764351160606,104.1,137.58,137.56,5.86147255]
[1764351162228,104.1,137.58,137.55,11.19983627]
[1764351162420,104.76,137.58,137.55,7.26983627]
[1764351163527,6.52147255,137.62,137.56,15.34141747]
[1764351163831,5.86147255,137.62,137.56,12.06994492]
[1764351164033,0.66,137.61,137.56,12.06994492]
[1764351164206,13.12785824,137.62,137.57,7.93902667]
[1764351164407,7.26638569,137.62,137.58,5.86147255]
[1764351164635,7.26638569,137.62,137.58,0.67]
[1764351164933,121.14758657,137.63,137.59,0.67]
[1764351165524,6.52147255,137.62,137.57,26.11159336]
[1764351165737,0.66,137.62,137.57,26.11159336]
[1764351165936,0.66,137.61,137.57,7.26902667]
[1764351166225,7.9272871,137.61,137.57,10.52902667]
[1764351166614,7.2672871,137.61,137.57,10.52902667]
[1764351166814,0.66,137.6,137.57,10.52902667]
[1764351167705,120.48762594,137.63,137.57,10.52902667]
[1764351168036,115.28615339,137.63,137.58,0.67]
[1764351168529,0.66,137.62,137.57,16.39049922]
[1764351168735,0.66,137.62,137.57,35.23306591]
[1764351171225,0.66,137.62,137.58,0.67]
[1764351171434,3.26,137.63,137.58,6.81579569]
[1764351171736,3.92,137.63,137.58,0.95432314]
[1764351172139,3.26,137.63,137.58,0.95432314]
[1764351172341,0.66,137.62,137.58,0.95432314]
[1764351172638,0.66,137.62,137.59,7.26797005]
[1764351173233,7.92641356,137.62,137.58,7.26824045]
[1764351173438,18.13873112,137.62,137.58,7.26824045]
[1764351174013,0.66,137.62,137.58,7.26824045]
[1764351174318,0.66,137.61,137.58,7.26824045]
[1764351174723,0.66,137.61,137.57,19.33881302]
[1764351175032,7.92693124,137.61,137.57,7.2688681]
[1764351175330,0.66,137.61,137.57,7.9388681]
[1764351175537,7.92696962,137.61,137.57,7.9388681]
[1764351176038,0.66,137.61,137.57,7.9388681]
[1764351176239,7.92707966,137.61,137.57,7.26901428]
[1764351176442,7.92707966,137.61,137.57,7.93901428]
[1764351176443,0.66,137.61,137.57,7.93901428]
[1764351177139,7.92712972,137.61,137.57,7.26901428]
[1764351177321,18.13944728,137.61,137.57,7.26901428]
[1764351177518,0.66,137.6,137.57,7.26901428]
[1764351178320,0.66,137.6,137.56,15.448864]
[1764351178517,10.21231756,137.57,137.43,33.55992914]
[1764351178819,10.21231756,137.46,137.42,0.67]
[1764351179035,16.308864,137.5,137.38,13.47231756]
[1764351179036,10.21231756,137.45,137.38,13.47231756]
[1764351179361,10.21231756,137.45,137.36,0.67]
[1764351179362,3.26,137.46,137.39,25.47492539]
[1764351179545,19.568864,137.47,137.39,25.47492539]
[1764351179724,19.568864,137.47,137.4,0.67]
[1764351179920,29.78118156,137.47,137.4,0.67]
[1764351180124,10.21231756,137.46,137.4,0.67]
[1764351180639,10.21231756,137.46,137.41,8.80994492]
[1764351180844,27.41324883,137.47,137.41,8.80994492]
[1764351180845,37.05556639,137.47,137.41,8.80994492]
[1764351181024,37.05556639,137.47,137.42,0.67]
[1764351181218,33.79556639,137.47,137.42,7.27696114]
[1764351181444,37.71556639,137.47,137.42,7.27696114]
[1764351182347,0.66,137.46,137.42,7.27696114]
[1764351182526,10.87231756,137.46,137.42,7.27696114]
[1764351182843,10.21231756,137.45,137.4,7.27802037]
[1764351183047,10.21231756,137.44,137.4,7.27802037]
[1764351183348,10.21231756,137.44,137.4,7.94802037]
[1764351184520,10.21231756,137.44,137.4,7.27802037]
[1764351184725,0.66,137.43,137.4,7.27802037]
[1764351185145,0.68,137.45,137.4,7.93802037]
[1764351185331,10.21231756,137.42,137.39,10.53836353]
[1764351185528,10.21231756,137.42,137.38,8.80994492]
[1764351185529,10.21231756,137.41,137.38,16.08884164]
[1764351185742,3.26,137.43,137.38,18.15121428]
[1764351186047,3.26,137.43,137.39,0.66]
[1764351186240,14.15231756,137.43,137.39,0.66]
[1764351186754,14.15231756,137.43,137.38,16.08884164]
[1764351186755,0.68,137.42,137.38,16.08884164]
[1764351187052,3.26,137.43,137.38,16.08884164]
[1764351187357,26.84426234,137.45,137.39,18.15068694]
[1764351187554,27.52426234,137.45,137.39,18.15068694]
[1764351187730,19.568864,137.46,137.41,10.21231756]
[1764351187928,19.568864,137.46,137.4,10.87231756]
[1764351188453,19.568864,137.46,137.41,0.66]
[1764351188628,20.248864,137.46,137.41,0.66]
[1764351189250,16.308864,137.46,137.41,18.14962346]
[1764351189435,3.26,137.47,137.42,0.66]
[1764351189631,14.15231756,137.47,137.42,0.66]
[1764351190751,23.58297317,137.48,137.42,10.87231756]
[1764351190752,16.308864,137.48,137.42,10.87231756]
[1764351191050,16.308864,137.48,137.43,19.02226248]
[1764351191256,16.308864,137.48,137.44,7.27590221]
[1764351191428,16.308864,137.48,137.45,0.66]
[1764351191832,14.15231756,137.5,137.45,0.66]
[1764351192246,16.308864,137.49,137.45,0.66]
[1764351192852,16.988864,137.49,137.45,0.66]
[1764351193544,13.47231756,137.5,137.45,7.93514269]
[1764351193744,0.68,137.53,137.48,8.80994492]
[1764351194060,3.26,137.54,137.48,19.02226248]
[1764351194235,3.26,137.54,137.49,0.66]
[1764351194431,10.21231756,137.52,137.49,0.66]
[1764351194632,10.89231756,137.53,137.49,0.66]
[1764351194843,10.21231756,137.52,137.47,9.50994492]
[1764351195058,0.68,137.53,137.47,9.50994492]
[1764351195238,0.68,137.53,137.48,7.27378527]
[1764351195239,18.16365169,137.53,137.48,7.27378527]
[1764351195444,13.47231756,137.55,137.49,0.7]
[1764351195640,16.308864,137.55,137.5,19.02226248]
[1764351195851,16.308864,137.55,137.51,10.21231756]
[1764351196050,27.17118156,137.55,137.51,0.7]
[1764351196235,34.44138294,137.55,137.51,0.7]
[1764351196857,27.17118156,137.55,137.51,0.7]
[1764351197360,24.22899467,137.55,137.51,0.7]
[1764351197560,34.44131223,137.55,137.51,0.7]
[1764351197964,10.86231756,137.58,137.52,8.80994492]
[1764351198137,21.39096686,137.58,137.52,8.80994492]
[1764351198338,13.47231756,137.58,137.53,0.7]